fUSD/lending_fUSD_20260612
["ID","MTS","AMOUNT","RATE_DAILY","PERIOD"]
[424906837,1781263113000,-1232.69,0.00010488,2]
[424906839,1781263155000,-47.31,0.00010488,2]
[424906842,1781263207000,593.759403,0.00010345,2]
[424906841,1781263207000,104.77943177,0.00010345,2]
[424906843,1781263251000,-1000.71991322,0.00010345,2]
[424906844,1781263271000,-1000.71991322,0.00010345,2]
[424906845,1781263291000,-986.06,0.00010296,2]
[424906846,1781263345000,-914.96133879,0.00010345,2]
[424906849,1781263396000,-500.0,0.0001026,2]
[424906852,1781263449000,-838.94,0.00010168,2]
[424906854,1781263504000,-500.0,0.00010219,2]
[424906855,1781263556000,-150.0,0.00010271,2]
[424906856,1781263610000,-1133.90446887,0.00010152,2]
[424906857,1781263631000,-485.91553113,0.00010152,2]
[424906858,1781263637000,-150.0,0.00010253,2]
[424906859,1781263637000,-500.0,0.00010296,2]
[424906861,1781263637000,-250.0,0.0001035,2]
[424906860,1781263637000,-500.0,0.00010296,2]
[424906862,1781263637000,-96.40132622,0.00010351,2]
[424906866,1781263758000,-160.0,0.00010355,2]
[424906863,1781263758000,-164.78,0.00010053,2]
[424906864,1781263758000,-250.0,0.00010354,2]
[424906865,1781263758000,-150.0,0.00010354,2]
[424906868,1781263758000,-250.0,0.00010376,2]
[424906867,1781263758000,-607.3,0.00010356,2]
[424906869,1781263758000,-200.0,0.00010398,2]
[424906872,1781263758000,-250.0,0.00010557,2]
[424906871,1781263758000,-150.0,0.00010456,2]
[424906874,1781263758000,-838.94,0.00010676,2]
[424906873,1781263758000,-166.66,0.00010672,2]
[424906875,1781263758000,-62864.46482,0.00010825,2]
[424906870,1781263758000,-838.94,0.00010422,2]
[424906876,1781263761000,-40852.42112,0.00010825,2]
[424906877,1781263767000,-44904.80932,0.00010825,2]
[424906878,1781263767000,-7427.648438,0.00010825,2]
[424906879,1781263768000,-28074.9077,0.00010825,2]
[424906880,1781263778000,-754.02520967,0.00010466,2]
[424906881,1781263808000,-125.12479033,0.00010466,2]
[424906889,1781263832000,-673.90711308,0.00010825,2]
[424906890,1781263832000,-343.14613815,0.00010825,2]
[424906886,1781263832000,-250.0,0.00010645,2]
[424906887,1781263832000,-150.0,0.00010824,2]
[424906891,1781263832000,-2790.75646433,0.00010825,2]
[424906888,1781263832000,-199.30213,0.00010825,2]
[424906892,1781263832000,-945495.4024103,0.00010825,2]
[424906895,1781263832000,-14249.69541331,0.00010825,2]
[424906894,1781263832000,-37902.22714144,0.00010825,2]
[424906897,1781263832000,-3184.83094082,0.00010825,2]
[424906896,1781263832000,-1509.42632579,0.00010825,2]
[424906893,1781263832000,-10489.84986001,0.00010825,2]
[424906908,1781263837000,-369.9983118,0.00010824,2]
[424906910,1781263837000,-120.13917135,0.00010824,2]
[424906912,1781263837000,-500.0,0.00010824,2]
[424906909,1781263837000,-290.72251685,0.00010824,2]
[424906911,1781263837000,-232.10105813,0.00010824,2]
[424906914,1781263837000,-311.23985219,0.00010824,2]
[424906916,1781263837000,-608.22927974,0.00010824,2]
[424906917,1781263837000,-110.23866167,0.00010824,2]
[424906915,1781263837000,-500.0,0.00010824,2]
[424906913,1781263837000,-188.76014781,0.00010824,2]
[424906918,1781263838000,-389.76133833,0.00010824,2]
[424906919,1781263838000,-110.23866167,0.00010824,2]
[424907036,1781263840000,-500.0,0.00010959,2]
[424907026,1781263840000,-393.95822676,0.000109,2]
[424907029,1781263840000,-2000.0,0.00010924,2]
[424907030,1781263840000,-2500000.0,0.00010925,2]
[424907033,1781263840000,-150.99,0.0001093,2]
[424907032,1781263840000,-838.94,0.0001093,2]
[424907034,1781263840000,-9999.99,0.0001093,2]
[424907042,1781263840000,-300.0,0.00011168,2]
[424907050,1781263840000,-1091.13413989,0.00011334,2]
[424907043,1781263840000,-166.66,0.00011178,2]
[424907035,1781263840000,-150.0,0.00010959,2]
[424907038,1781263840000,-18766.56,0.00010959,2]
[424907041,1781263840000,-694.93780641,0.00011144,2]
[424907040,1781263840000,-166.66,0.00011068,2]
[424907039,1781263840000,-166.66,0.00011025,2]
[424907044,1781263840000,-838.94,0.00011185,2]
[424907028,1781263840000,-250.0,0.00010924,2]
[424907049,1781263840000,-292.35489845,0.00011326,2]
[424907037,1781263840000,-9999.99,0.00010959,2]
[424907025,1781263840000,-219.67472822,0.0001083,2]
[424907021,1781263840000,-500.0,0.00010824,2]
[424907023,1781263840000,-263.32563045,0.0001083,2]
[424907045,1781263840000,-506.59324214,0.00011233,2]
[424907004,1781263840000,-500.0,0.00010824,2]
[424907005,1781263840000,-500.0,0.00010824,2]
[424907008,1781263840000,-500.0,0.00010824,2]
[424907007,1781263840000,-500.0,0.00010824,2]
[424907006,1781263840000,-500.0,0.00010824,2]
[424907011,1781263840000,-500.0,0.00010824,2]
[424907012,1781263840000,-500.0,0.00010824,2]
[424907009,1781263840000,-500.0,0.00010824,2]
[424907010,1781263840000,-500.0,0.00010824,2]
[424907013,1781263840000,-549.83807945,0.00010824,2]
[424907014,1781263840000,-500.0,0.00010824,2]
[424907019,1781263840000,-500.0,0.00010824,2]
[424907003,1781263840000,-500.0,0.00010824,2]
[424907020,1781263840000,-500.0,0.00010824,2]
[424907018,1781263840000,-181.53160301,0.00010824,2]
[424907016,1781263840000,-500.0,0.00010824,2]
[424907015,1781263840000,-500.0,0.00010824,2]
[424907022,1781263840000,-299037.20466477,0.00010825,2]
[424907027,1781263840000,-1000.0,0.00010924,2]
[424907048,1781263840000,-166.66,0.00011288,2]
[424907002,1781263840000,-389.76133833,0.00010824,2]
[424907046,1781263840000,-2500.0,0.00011244,2]
[424907075,1781263840000,-19379.3925,0.00011444,2]
[424907076,1781263840000,-2000.0,0.00011444,2]
[424907077,1781263840000,-166.66,0.00011507,2]
[424907079,1781263840000,-250.0,0.00011513,2]
[424907083,1781263840000,-879.15,0.00011774,2]
[424907078,1781263840000,-300.0,0.00011513,2]
[424907082,1781263840000,-166.66,0.00011729,2]
[424907080,1781263840000,-168.89,0.00011587,2]
[424907084,1781263840000,-1280.0,0.00011799,2]
[424907072,1781263840000,-500.0,0.00011441,2]
[424907081,1781263840000,-150.70924125,0.00011622,2]
[424907086,1781263840000,-341.2236994,0.0001191,7]
[424907087,1781263840000,-150.70924125,0.00011999,2]
[424907092,1781263840000,-150.13333076,0.00012329,2]
[424907090,1781263840000,-191.51,0.00012329,2]
[424907088,1781263840000,-166.66,0.00012081,2]
[424907093,1781263840000,-150.70924125,0.00012377,2]
[424907089,1781263840000,-191.51,0.00012329,2]
[424907091,1781263840000,-175.22982642,0.00012329,2]
[424907053,1781263840000,-500.0,0.00011343,2]
[424907085,1781263840000,-255.0,0.00011863,2]
[424907073,1781263840000,-500.0,0.00011441,2]
[424907017,1781263840000,-500.0,0.00010824,2]
[424907068,1781263840000,-500.0,0.00011441,2]
[424907047,1781263840000,-150.70924127,0.00011244,2]
[424907070,1781263840000,-500.0,0.00011441,2]
[424907051,1781263840000,-1076.83830854,0.00011343,3]
[424907052,1781263840000,-500.0,0.00011343,2]
[424907054,1781263840000,-500.0,0.00011343,2]
[424907055,1781263840000,-500.0,0.00011343,2]
[424907061,1781263840000,-500.0,0.00011343,2]
[424907062,1781263840000,-166.66,0.00011377,2]
[424907058,1781263840000,-500.0,0.00011343,2]
[424907063,1781263840000,-250.0,0.00011389,2]
[424907056,1781263840000,-500.0,0.00011343,2]
[424907059,1781263840000,-500.0,0.00011343,2]
[424907064,1781263840000,-166.66,0.00011397,2]
[424907060,1781263840000,-500.0,0.00011343,2]
[424907065,1781263840000,-1619.82,0.00011421,2]
[424907066,1781263840000,-1091.13413989,0.00011432,2]
[424907074,1781263840000,-500.0,0.00011441,2]
[424907067,1781263840000,-250.0,0.00011441,2]
[424907071,1781263840000,-500.0,0.00011441,2]
[424907069,1781263840000,-500.0,0.00011441,2]
[424907057,1781263840000,-500.0,0.00011343,2]
[424907130,1781263841000,-2000.0,0.00013654,2]
[424907128,1781263841000,-150.70924125,0.0001351,2]
[424907126,1781263841000,-500.0,0.00013425,2]
[424907125,1781263841000,-500.0,0.00013425,2]
[424907119,1781263841000,-500.0,0.00013425,2]
[424907127,1781263841000,-222.85351328,0.00013425,2]
[424907123,1781263841000,-500.0,0.00013425,2]
[424907124,1781263841000,-500.0,0.00013425,2]
[424907133,1781263841000,-500.0,0.00013698,2]
[424907122,1781263841000,-163.2095384,0.00013425,2]
[424907132,1781263841000,-500.0,0.00013697,2]
[424907142,1781263841000,-500.0,0.00013698,2]
[424907131,1781263841000,-250.0,0.0001368,2]
[424907137,1781263841000,-500.0,0.00013698,2]
[424907135,1781263841000,-500.0,0.00013698,2]
[424907138,1781263841000,-500.0,0.00013698,2]
[424907136,1781263841000,-500.0,0.00013698,2]
[424907140,1781263841000,-500.0,0.00013698,2]
[424907139,1781263841000,-500.0,0.00013698,2]
[424907141,1781263841000,-500.0,0.00013698,2]
[424907143,1781263841000,-500.0,0.00013698,2]
[424907121,1781263841000,-150.0,0.00013425,2]
[424907144,1781263841000,-500.0,0.00013698,2]
[424907134,1781263841000,-500.0,0.00013698,2]
[424907120,1781263841000,-336.21909563,0.00013425,2]
[424907111,1781263841000,-177.42306754,0.00013425,2]
[424907118,1781263841000,-500.0,0.00013425,2]
[424907094,1781263841000,-151.0,0.00012398,2]
[424907095,1781263841000,-151.0,0.00012398,2]
[424907097,1781263841000,-1619.82,0.0001269,2]
[424907098,1781263841000,-500.0,0.00012712,2]
[424907102,1781263841000,-433.0,0.00012999,2]
[424907104,1781263841000,-3398.56136098,0.00013074,2]
[424907096,1781263841000,-166.66,0.00012434,2]
[424907101,1781263841000,-263.32563043,0.00012865,2]
[424907103,1781263841000,-168.89,0.00013035,2]
[424907099,1781263841000,-393.95822674,0.00012754,2]
[424907100,1781263841000,-150.70924125,0.00012755,2]
[424907106,1781263841000,-15822.12721717,0.00013074,2]
[424907116,1781263841000,-500.0,0.00013425,2]
[424907107,1781263841000,-23668.95605761,0.00013074,2]
[424907146,1781263841000,-500.0,0.00013698,2]
[424907114,1781263841000,-532.61682043,0.00013425,2]
[424907110,1781263841000,-150.70924125,0.00013133,2]
[424907109,1781263841000,-1280.0,0.0001311,2]
[424907113,1781263841000,-150.0,0.00013425,2]
[424907115,1781263841000,-200.94003114,0.00013425,2]
[424907105,1781263841000,-8968.85720213,0.00013074,2]
[424907108,1781263841000,-879.15,0.00013082,2]
[424907112,1781263841000,-500.0,0.00013425,2]
[424907117,1781263841000,-500.0,0.00013425,2]
[424907148,1781263841000,-500.0,0.00013698,2]
[424907129,1781263841000,-500.0,0.00013654,2]
[424907145,1781263841000,-500.0,0.00013698,2]
[424907179,1781263841000,-500.0,0.00013698,2]
[424907180,1781263841000,-647.5156614,0.00013698,2]
[424907177,1781263841000,-500.0,0.00013698,2]
[424907181,1781263841000,-500.0,0.00013698,2]
[424907178,1781263841000,-500.0,0.00013698,2]
[424907191,1781263841000,-977.19,0.00013698,2]
[424907183,1781263841000,-500.0,0.00013698,2]
[424907192,1781263841000,-977.19,0.00013698,2]
[424907182,1781263841000,-500.0,0.00013698,2]
[424907190,1781263841000,-977.19,0.00013698,2]
[424907188,1781263841000,-977.19,0.00013698,2]
[424907176,1781263841000,-500.0,0.00013698,2]
[424907185,1781263841000,-500.0,0.00013698,2]
[424907187,1781263841000,-405.47,0.00013698,2]
[424907189,1781263841000,-977.19,0.00013698,2]
[424907194,1781263841000,-977.19,0.00013698,2]
[424907193,1781263841000,-977.19,0.00013698,2]
[424907195,1781263841000,-977.19,0.00013698,2]
[424907196,1781263841000,-977.19,0.00013698,2]
[424907200,1781263841000,-977.19,0.00013698,2]
[424907197,1781263841000,-977.19,0.00013698,2]
[424907199,1781263841000,-977.19,0.00013698,2]
[424907147,1781263841000,-500.0,0.00013698,2]
[424907198,1781263841000,-977.19,0.00013698,2]
[424907184,1781263841000,-500.0,0.00013698,2]
[424907175,1781263841000,-500.0,0.00013698,2]
[424907186,1781263841000,-500.0,0.00013698,2]
[424907173,1781263841000,-500.0,0.00013698,2]
[424907149,1781263841000,-500.0,0.00013698,2]
[424907171,1781263841000,-500.0,0.00013698,2]
[424907158,1781263841000,-1785.24,0.00013698,2]
[424907154,1781263841000,-1785.24,0.00013698,2]
[424907156,1781263841000,-1785.24,0.00013698,2]
[424907157,1781263841000,-1785.24,0.00013698,2]
[424907155,1781263841000,-1785.24,0.00013698,2]
[424907152,1781263841000,-1785.24,0.00013698,2]
[424907159,1781263841000,-1785.24,0.00013698,2]
[424907153,1781263841000,-1785.24,0.00013698,2]
[424907151,1781263841000,-529.19105984,0.00013698,2]
[424907160,1781263841000,-1785.24,0.00013698,2]
[424907162,1781263841000,-1785.24,0.00013698,2]
[424907150,1781263841000,-500.0,0.00013698,2]
[424907161,1781263841000,-1785.24,0.00013698,2]
[424907164,1781263841000,-1785.24,0.00013698,2]
[424907170,1781263841000,-500.0,0.00013698,2]
[424907166,1781263841000,-1785.24,0.00013698,2]
[424907169,1781263841000,-1785.24,0.00013698,2]
[424907168,1781263841000,-1785.24,0.00013698,2]
[424907165,1781263841000,-1785.24,0.00013698,2]
[424907167,1781263841000,-1785.24,0.00013698,2]
[424907172,1781263841000,-500.0,0.00013698,2]
[424907174,1781263841000,-500.0,0.00013698,2]
[424907163,1781263841000,-1785.24,0.00013698,2]
[424907255,1781263842000,-500.0,0.00013977,2]
[424907238,1781263842000,-1785.24,0.00013977,2]
[424907235,1781263842000,-151.0,0.00013975,2]
[424907247,1781263842000,-977.19,0.00013977,2]
[424907236,1781263842000,-1785.24,0.00013977,2]
[424907230,1781263842000,-3010.16895493,0.00013808,2]
[424907231,1781263842000,-212.30669973,0.00013808,2]
[424907234,1781263842000,-1619.82,0.00013959,2]
[424907239,1781263842000,-1785.24,0.00013977,2]
[424907229,1781263842000,-255.82112414,0.00013743,2]
[424907233,1781263842000,-185.291973,0.00013956,2]
[424907243,1781263842000,-977.19,0.00013977,2]
[424907244,1781263842000,-977.19,0.00013977,2]
[424907246,1781263842000,-977.19,0.00013977,2]
[424907240,1781263842000,-1785.24,0.00013977,2]
[424907237,1781263842000,-1785.24,0.00013977,2]
[424907241,1781263842000,-1785.33955664,0.00013977,2]
[424907248,1781263842000,-977.19,0.00013977,2]
[424907252,1781263842000,-500.0,0.00013977,2]
[424907254,1781263842000,-500.0,0.00013977,2]
[424907253,1781263842000,-500.0,0.00013977,2]
[424907249,1781263842000,-977.22737414,0.00013977,2]
[424907232,1781263842000,-150.70924125,0.00013888,2]
[424907242,1781263842000,-977.19,0.00013977,2]
[424907228,1781263842000,-163.69,0.000137,2]
[424907201,1781263842000,-977.19,0.00013698,2]
[424907225,1781263842000,-500.0,0.00013699,2]
[424907256,1781263842000,-500.0,0.00013977,2]
[424907202,1781263842000,-977.19,0.00013698,2]
[424907204,1781263842000,-977.19,0.00013698,2]
[424907205,1781263842000,-454.0,0.00013698,2]
[424907207,1781263842000,-168.912749,0.00013698,2]
[424907206,1781263842000,-443.0,0.00013698,2]
[424907208,1781263842000,-165.110316,0.00013698,2]
[424907213,1781263842000,-500.0,0.00013699,2]
[424907211,1781263842000,-500.0,0.00013699,2]
[424907209,1781263842000,-2500.0,0.00013699,2]
[424907210,1781263842000,-200.0,0.00013699,2]
[424907227,1781263842000,-583.54,0.000137,2]
[424907212,1781263842000,-500.0,0.00013699,2]
[424907215,1781263842000,-500.0,0.00013699,2]
[424907217,1781263842000,-500.0,0.00013699,2]
[424907216,1781263842000,-500.0,0.00013699,2]
[424907218,1781263842000,-500.0,0.00013699,2]
[424907219,1781263842000,-500.0,0.00013699,2]
[424907224,1781263842000,-500.0,0.00013699,2]
[424907220,1781263842000,-254.63383606,0.00013699,2]
[424907223,1781263842000,-500.0,0.00013699,2]
[424907222,1781263842000,-500.0,0.00013699,2]
[424907221,1781263842000,-500.0,0.00013699,2]
[424907226,1781263842000,-500.0,0.00013699,2]
[424907214,1781263842000,-500.0,0.00013699,2]
[424907250,1781263842000,-500.0,0.00013977,2]
[424907203,1781263842000,-977.19,0.00013698,2]
[424907251,1781263842000,-500.0,0.00013977,2]
[424907291,1781263842000,-500.0,0.00013977,2]
[424907282,1781263842000,-500.0,0.00013977,2]
[424907289,1781263842000,-500.0,0.00013977,2]
[424907285,1781263842000,-500.0,0.00013977,2]
[424907299,1781263842000,-500.0,0.00013977,2]
[424907292,1781263842000,-500.0,0.00013977,2]
[424907295,1781263842000,-500.0,0.00013977,2]
[424907296,1781263842000,-500.0,0.00013977,2]
[424907298,1781263842000,-500.0,0.00013977,2]
[424907297,1781263842000,-500.0,0.00013977,2]
[424907300,1781263842000,-500.0,0.00013977,2]
[424907281,1781263842000,-500.0,0.00013977,2]
[424907301,1781263842000,-500.0,0.00013977,2]
[424907293,1781263842000,-500.0,0.00013977,2]
[424907294,1781263842000,-500.0,0.00013977,2]
[424907303,1781263842000,-500.0,0.00013977,2]
[424907304,1781263842000,-500.0,0.00013977,2]
[424907310,1781263842000,-500.0,0.00013977,2]
[424907308,1781263842000,-500.0,0.00013977,2]
[424907309,1781263842000,-500.0,0.00013977,2]
[424907306,1781263842000,-500.0,0.00013977,2]
[424907307,1781263842000,-500.0,0.00013977,2]
[424907305,1781263842000,-500.0,0.00013977,2]
[424907257,1781263842000,-500.0,0.00013977,2]
[424907302,1781263842000,-500.0,0.00013977,2]
[424907290,1781263842000,-500.0,0.00013977,2]
[424907283,1781263842000,-500.0,0.00013977,2]
[424907287,1781263842000,-500.0,0.00013977,2]
[424907261,1781263842000,-500.0,0.00013977,2]
[424907258,1781263842000,-500.0,0.00013977,2]
[424907260,1781263842000,-500.0,0.00013977,2]
[424907269,1781263842000,-500.0,0.00013977,2]
[424907263,1781263842000,-500.0,0.00013977,2]
[424907259,1781263842000,-500.0,0.00013977,2]
[424907262,1781263842000,-500.0,0.00013977,2]
[424907264,1781263842000,-500.0,0.00013977,2]
[424907284,1781263842000,-500.0,0.00013977,2]
[424907268,1781263842000,-500.0,0.00013977,2]
[424907267,1781263842000,-500.0,0.00013977,2]
[424907266,1781263842000,-500.0,0.00013977,2]
[424907271,1781263842000,-500.0,0.00013977,2]
[424907265,1781263842000,-500.0,0.00013977,2]
[424907279,1781263842000,-500.0,0.00013977,2]
[424907270,1781263842000,-500.0,0.00013977,2]
[424907286,1781263842000,-500.0,0.00013977,2]
[424907277,1781263842000,-500.0,0.00013977,2]
[424907276,1781263842000,-500.0,0.00013977,2]
[424907274,1781263842000,-500.0,0.00013977,2]
[424907288,1781263842000,-500.0,0.00013977,2]
[424907275,1781263842000,-500.0,0.00013977,2]
[424907272,1781263842000,-500.0,0.00013977,2]
[424907280,1781263842000,-500.0,0.00013977,2]
[424907278,1781263842000,-500.0,0.00013977,2]
[424907273,1781263842000,-500.0,0.00013977,2]
[424907318,1781263843000,-500.0,0.00013977,2]
[424907312,1781263843000,-500.0,0.00013977,2]
[424907313,1781263843000,-500.0,0.00013977,2]
[424907311,1781263843000,-500.0,0.00013977,2]
[424907315,1781263843000,-500.0,0.00013977,2]
[424907314,1781263843000,-500.0,0.00013977,2]
[424907317,1781263843000,-500.0,0.00013977,2]
[424907322,1781263843000,-500.0,0.00013977,2]
[424907323,1781263843000,-500.0,0.00013977,2]
[424907319,1781263843000,-500.0,0.00013977,2]
[424907320,1781263843000,-500.0,0.00013977,2]
[424907330,1781263843000,-500.0,0.00013977,2]
[424907316,1781263843000,-500.0,0.00013977,2]
[424907332,1781263843000,-263.475077,0.0001399,2]
[424907333,1781263843000,-250.0,0.00014,2]
[424907326,1781263843000,-500.0,0.00013977,2]
[424907329,1781263843000,-500.0,0.00013977,2]
[424907328,1781263843000,-500.0,0.00013977,2]
[424907331,1781263843000,-770928.1474053,0.00013978,2]
[424907334,1781263843000,-75469.60821104,0.00014,2]
[424907321,1781263843000,-500.0,0.00013977,2]
[424907325,1781263843000,-500.0,0.00013977,2]
[424907324,1781263843000,-500.0,0.00013977,2]
[424907327,1781263843000,-500.0,0.00013977,2]
[424907359,1781263844000,-5800.0,0.00014815,2]
[424907355,1781263844000,-212.84828511,0.00014647,2]
[424907352,1781263844000,-212.30669973,0.00014603,2]
[424907354,1781263844000,-235.27635983,0.00014647,2]
[424907363,1781263844000,-166.05619123,0.00014899,2]
[424907353,1781263844000,-151.0,0.0001463,2]
[424907342,1781263844000,-736.0,0.00014255,2]
[424907349,1781263844000,-1806.844,0.00014558,2]
[424907345,1781263844000,-986.06,0.00014415,2]
[424907350,1781263844000,-173.345,0.00014558,2]
[424907357,1781263844000,-393.95822674,0.00014779,2]
[424907346,1781263844000,-1280.0,0.0001442,2]
[424907344,1781263844000,-879.15,0.00014391,2]
[424907343,1781263844000,-5530.0,0.000143,3]
[424907341,1781263844000,-212.30669973,0.00014206,2]
[424907340,1781263844000,-32024.9358,0.00014074,2]
[424907339,1781263844000,-14654.39178896,0.00014,2]
[424907338,1781263844000,-2500.0,0.00010825,2]
[424907347,1781263844000,-168.89,0.00014483,2]
[424907356,1781263844000,-1500.0,0.00014744,2]
[424907348,1781263844000,-227.448938,0.0001451,2]
[424907362,1781263844000,-184.50687914,0.00014899,2]
[424907360,1781263844000,-5800.0,0.00014823,2]
[424907378,1781263844000,-300.0,0.00014999,2]
[424907380,1781263844000,-53281.20389475,0.00015,2]
[424907377,1781263844000,-300.0,0.00014999,2]
[424907379,1781263844000,-300.0,0.00014999,2]
[424907375,1781263844000,-671.10899491,0.00014999,2]
[424907376,1781263844000,-300.0,0.00014999,2]
[424907371,1781263844000,-96384.9473562,0.00014998,2]
[424907372,1781263844000,-367.88940552,0.00014998,2]
[424907365,1781263844000,-1702.89830607,0.000149,2]
[424907351,1781263844000,-5530.0,0.000146,5]
[424907367,1781263844000,-262.77566063,0.00014938,2]
[424907370,1781263844000,-1076.83830854,0.00014997,5]
[424907373,1781263844000,-300.0,0.00014999,2]
[424907374,1781263844000,-300.0,0.00014999,2]
[424907369,1781263844000,-1091.13413989,0.0001499,2]
[424907368,1781263844000,-157.33036761,0.00014953,2]
[424907366,1781263844000,-263.32563043,0.000149,2]
[424907364,1781263844000,-236.49809457,0.00014899,2]
[424907358,1781263844000,-5800.0,0.00014806,2]
[424907361,1781263844000,-5800.0,0.00014832,2]
[424907382,1781263846000,-3538.0,0.00015,2]
[424907383,1781263846000,-312.60498429,0.00015,2]
[424907386,1781263851000,826.63,0.00011099,2]
[424907387,1781263915000,-500.0,0.00010824,2]
[424907389,1781263970000,-160.0,0.00010824,2]
[424907390,1781264077000,-849.91412598,0.00010608,2]
[424907391,1781264130000,-595.56187402,0.00010608,2]
[424907395,1781264184000,-335.57,0.00010606,2]
[424907396,1781264236000,-173.345,0.00010608,2]
[424907398,1781264290000,-150.0,0.00010296,2]
[424907402,1781264448000,-200.0,0.00010139,2]
[424907403,1781264502000,-250.0,0.00010149,2]
[424907404,1781264555000,-300.0,0.00010158,2]
[424907405,1781264611000,-168.89,0.00010082,2]
[424907406,1781264663000,-1295.85,0.00010177,2]
[424907408,1781264690000,16.9446225,8.11e-05,2]
[424907407,1781264690000,182.3053775,8.11e-05,2]
[424907409,1781264716000,-611.83952664,9.988e-05,2]
[424907410,1781264738000,-507.82047336,9.988e-05,2]
[424907411,1781264791000,-292.35489845,0.00010083,2]
[424907412,1781264843000,-500.0,0.00010178,2]
[424907414,1781264849000,-500.0,0.00010424,2]
[424907413,1781264849000,-160.0,0.0001018,2]
[424907417,1781264849000,-694.93780641,0.00010623,2]
[424907418,1781264849000,-4978.87179997,0.00010659,2]
[424907416,1781264849000,-500.0,0.00010424,2]
[424907415,1781264849000,-500.0,0.00010424,2]
[424907419,1781264898000,-30517.37744416,0.00010659,2]
[424907420,1781264949000,-2052.699866,0.000105,2]
[424907423,1781264951000,-1425.26667308,0.000105,2]
[424907422,1781264951000,-3014.89746985,0.000105,2]
[424907421,1781264951000,-3014.89746985,0.000105,2]
[424907424,1781264958000,-1337.821422,0.000105,2]
[424907425,1781264967000,-6363.637056,0.000105,2]
[424907426,1781264968000,-34203.39374163,0.000105,2]
[424907427,1781264974000,-898.0708828,0.000105,2]
[424907429,1781264977000,-3163.9987021,0.000105,2]
[424907428,1781264977000,-3163.9987021,0.000105,2]
[424907430,1781264977000,-1729.49323603,0.000105,2]
[424907431,1781265013000,-593.759403,0.00010447,2]
[424907432,1781265013000,-463.29187094,0.00010584,2]
[424907433,1781265013000,-300.0,0.00010622,2]
[424907434,1781265013000,-219.67472822,0.00010623,2]
[424907436,1781265013000,-2187.30049721,0.00010623,2]
[424907435,1781265013000,-2342.18191575,0.00010623,2]
[424907437,1781265013000,-160.0,0.00010623,2]
[424907439,1781265013000,-203.5057618,0.00010658,2]
[424907440,1781265013000,-246.56816064,0.00010658,2]
[424907441,1781265013000,-268.775277,0.00010658,2]
[424907442,1781265013000,-231.224723,0.00010658,2]
[424907443,1781265013000,-355.18004366,0.00010658,2]
[424907438,1781265013000,-258.99881826,0.00010658,2]
[424907458,1781265031000,-500.0,0.00010658,2]
[424907447,1781265031000,-301.74235507,0.000103,2]
[424907449,1781265031000,-2779.67706544,0.000103,2]
[424907448,1781265031000,-959.58057949,0.000103,2]
[424907450,1781265031000,-1369.37396432,0.00010649,2]
[424907452,1781265031000,-500.0,0.00010658,2]
[424907451,1781265031000,-42.79867468,0.00010658,2]
[424907454,1781265031000,-167.81970444,0.00010658,2]
[424907455,1781265031000,-500.0,0.00010658,2]
[424907453,1781265031000,-332.18029556,0.00010658,2]
[424907459,1781265031000,-500.0,0.00010658,2]
[424907463,1781265031000,-500.0,0.00010658,2]
[424907466,1781265031000,-500.0,0.00010658,2]